Cogmind - Beta 11 @@@ ROGUE MODE // 2022.03.26 @ 07:40:52 Player: Saddlefall Result: Destroyed by D-53 Grenadier with Mini Grenade Launcher Performance ------------- Evolutions (0) 0 Regions Visited (2) 400 Robots Destroyed (11) 55 Value Destroyed (176) 176 Prototype IDs (0) 0 Alien Tech Used (0) 0 Bonus (-107) -107 TOTAL SCORE: 524 Bonus ------- High Alert Combat Kills 6 Follower Combat Kills 25 Friendly Fire -138 Cogmind --------- Core Integrity 0/250 Matter 172/400 Energy 86/250 System Corruption 0% Temperature Cool (0) Movement Walking (120) Location -10/Mines Parts ------- > --- POWER (1) -------- Ion Engine > --- PROPULSION (2) --- Flexi-carbon Leg > --- UTILITY (2) ------ Small Storage Unit Medium Matter Pod > --- WEAPON (2) ------- Light Assault Rifle > --- INVENTORY (8) ---- Light Treads Light Treads Small Laser Grenade Launcher Rocket Launcher Peak State ------------ > --- POWER ------------ Ion Engine > --- PROPULSION ------- Aluminum Leg Flexi-carbon Leg > --- UTILITY ---------- Small Storage Unit Light Armor Plating > --- WEAPON ----------- Light Assault Rifle Rocket Launcher > --- INVENTORY -------- Light Ion Engine Light Treads Light Treads Aluminum Leg Medium Matter Pod EM Pulse Gun Small Laser Grenade Launcher [Rating: 12] Favorites ----------- Power Ion Engine Engine Ion Engine Propulsion Aluminum Leg Leg Aluminum Leg Utility Small Storage Unit Storage Small Storage Unit Protection Light Armor Plating Weapon Light Assault Rifle Energy Gun Small Laser Ballistic Gun Light Assault Rifle Launcher Rocket Launcher Build | -11 -10 -10 ------- Run | Scr Mat Min Slots Evolved . | . . . Power . | . . . Propulsion . | . . . Utility . | . . . Weapon . | . . . Parts Attached 10 | . 1 9 Power 1 | . . 1 Engine 1 | . . 1 Core . | . . . Reactor . | . . . Propulsion 1 | . . 1 Treads . | . . . Leg 1 | . . 1 Wheel . | . . . Hover . | . . . Flight . | . . . Utility 2 | . 1 1 Device . | . . . Storage 1 | . . 1 Processor . | . . . Hackware . | . . . Protection 1 | . 1 . Artifact . | . . . Weapon 6 | . . 6 Energy Gun 3 | . . 3 Energy Cannon . | . . . Ballistic Gun . | . . . Ballistic Cannon . | . . . Launcher 3 | . . 3 Special Weapon . | . . . Impact Weapon . | . . . Slashing Weapon . | . . . Piercing Weapon . | . . . Special Melee Weapon . | . . . Unidentified Prototypes . | . . . Parts Lost 3 | . . 3 Power . | . . . Propulsion 1 | . . 1 Utility 1 | . . 1 Weapon 1 | . . 1 Highest Loss Streak 3 | . . 3 To Critical Strikes . | . . . Average Slot Usage (%) 97 | . 97 96 Engine 11 | . 14 11 Leg 28 | . 28 28 Storage 14 | . 14 14 Protection 12 | . 12 13 Energy Gun 8 | . 14 6 Ballistic Gun 14 | . 14 14 Launcher 5 | . . 7 Naked Turns . | . . . Heaviest Build 18 | 12 15 18 Greatest Support 30 | 20 20 30 Greatest Overweight (x) . | . . . Average Overweight (x) . | . . . Largest Inventory Capacity 8 | . 8 8 Average Capacity 8 | . 8 8 Most Carried 8 | . 8 8 Average Carried 7 | . 7 7 Final Capacity 8 | 8 8 8 Final Carried 8 | 6 8 5 Class Distribution -------------------- 100% | Mutant Dominant Class ---------------- Mutant | -10/Materials Mutant | -10/Mines Resources | -11 -10 -10 ----------- Run | Scr Mat Min Matter Collected 428 | 191 . 237 Remotely . | . . . Salvage Created 340 | . . 340 Parts 13 | . . 13 Haulers Intercepted . | . . . Recyclers Shooed 1 | . . 1 Parts Field Recycled . | . . . Retrieved Matter . | . . . Parts Self-Destructed . | . . . Prevented . | . . . Kills | -11 -10 -10 ------- Run | Scr Mat Min Combat Hostiles Destroyed 19 | . . 19 Guns 3 | . . 3 AOE 16 | . . 16 Classes Destroyed 7 | . . 7 Worker 1 | . . 1 Builder 1 | . . 1 Recycler 2 | . . 2 Mechanic 1 | . . 1 Swarmer 3 | . . 3 Grunt 3 | . . 3 Assembled 13 | . . 13 Best Kill Streak 9 | . . 9 Combat Bots Only 9 | . . 9 Max Kills in Single Turn 3 | . . 3 Gunslinging . | . . . Exploded 2 | . . 2 Melee . | . . . Uniques/NPCs Destroyed . | . . . Combat | -11 -10 -10 -------- Run | Scr Mat Min Damage Taken 822 | . . 822 Core 252 | . . 252 Absorbed by Shields . | . . . Core Remaining (%) 100 | 100 . . Volleys Fired 33 | . 1 32 Largest 2 | . 2 2 Hottest 60 | . 60 60 Shots Fired 53 | . 2 51 Gun 30 | . 2 28 Cannon . | . . . Launcher 23 | . . 23 Special . | . . . Kinetic 22 | . 1 21 Thermal 1 | . 1 . Explosive 23 | . . 23 Electromagnetic 7 | . . 7 Robot Hit Streak 5 | . 1 5 Robot Miss Streak 3 | . 1 3 Penetration Max . | . . . Secondary Targets . | . . . Shots Hit Robots 26 | . 1 25 Core Hits 44 | . . 44 Critical Kills . | . . . Critical Parts Destroyed . | . . . Critical Strikes . | . . . Melee Attacks . | . . . Impact . | . . . Slashing . | . . . Piercing . | . . . Sneak Attacks . | . . . Combat Hostiles . | . . . Follow-up Attacks . | . . . Damage Inflicted 1720 | . 12 1708 Guns 154 | . 12 142 Cannons . | . . . Explosions 1566 | . . 1566 Melee . | . . . Ramming . | . . . Kinetic 93 | . . 93 Thermal 12 | . 12 . Explosive 1566 | . . 1566 Electromagnetic 49 | . . 49 Impact . | . . . Slashing . | . . . Piercing . | . . . Highest Corruption . | . . . Average Corruption . | . . . Corruption Purged . | . . . Corruption Blocked . | . . . Overload Shots . | . . . Overflow Damage 43 | . . 43 Projectiles . | . . . Explosions 43 | . . 43 Melee . | . . . Knockbacks . | . . . Impact . | . . . Kinetic . | . . . Secondary . | . . . Self-Inflicted Damage 59 | . . 59 Shots 2 | . . 2 Rammed . | . . . Targets Rammed 1 | . . 1 Kicked 1 | . . 1 Crushed . | . . . Highest Temperature 61 | . 26 61 Average Temperature 21 | . 16 22 Received Heat Transfer 92 | . . 92 Siege Activations . | . . . Robots Corrupted . | . . . Combat Hostiles . | . . . Parts Fried . | . . . Impact Corruptions . | . . . Robots Melted . | . . . Combat Hostiles . | . . . Parts Melted . | . . . Heat Transferred 25 | . 25 . Parts Sabotaged . | . . . Parts Stolen . | . . . Parts Stripped . | . . . Power Chain Reactions . | . . . Missiles Intercepted . | . . . Alert | -11 -10 -10 ------- Run | Scr Mat Min Peak Influence 501 | . 15 501 Initial 5 | . . 5 Average 184 | . 10 225 Maximum Alert Level 2 | . . 2 Low Security (%) 61 | . 100 52 Level 1 29 | . . 36 Level 2 8 | . . 10 Level 3 . | . . . Level 4 . | . . . Level 5 . | . . . High Security . | . . . Max Security . | . . . Squads Dispatched 2 | . 1 1 Investigation . | . . . Extermination . | . . . Reinforcement 1 | . 1 . Assault 1 | . . 1 Garrison . | . . . Intercept . | . . . Searches Triggered . | . . . Construction Impeded . | . . . Haulers Reinforced . | . . . Active Scanning Responses . | . . . Cargo Convoy Interrupts . | . . . Stealth | -11 -10 -10 --------- Run | Scr Mat Min Distress Signals . | . . . Communications Jammed . | . . . Distress Signals . | . . . Times Spotted 31 | . 2 29 Peak Tracking Total 9 | . 2 9 Tactical Retreats . | . . . Traps | -11 -10 -10 ------- Run | Scr Mat Min Traps Triggered . | . . . Indirectly . | . . . Trap Hack Attempts . | . . . Triggered . | . . . Disarmed . | . . . Reprogrammed . | . . . Reused . | . . . Traps Extracted . | . . . Installed . | . . . Triggered . | . . . Machines | -11 -10 -10 ---------- Run | Scr Mat Min Machines Disabled . | . . . Max in Single Turn . | . . . Machines Sabotaged . | . . . Garrisons Compromised . | . . . Overloaded Fab Kills . | . . . Hacking | -11 -10 -10 --------- Run | Scr Mat Min Machines Accessed . | . . . Terminals . | . . . Fabricators . | . . . Repair Stations . | . . . Recycling Units . | . . . Scanalyzers . | . . . Garrison Access . | . . . Total Hacks . | . . . Successful . | . . . Failed . | . . . Catastrophic . | . . . Database Lockouts . | . . . Manual . | . . . Terminals . | . . . Fabricators . | . . . Repair Stations . | . . . Recycling Units . | . . . Scanalyzers . | . . . Garrison Access . | . . . Terminal Hacks . | . . . Fabricator Hacks . | . . . Repair Station Hacks . | . . . Recycling Unit Hacks . | . . . Scanalyzer . | . . . Garrison Access Hacks . | . . . Unauthorized Hacks . | . . . Terminals . | . . . Fabricators . | . . . Repair Stations . | . . . Recycling Units . | . . . Scanalyzers . | . . . Garrison Access . | . . . Data Cores Recovered . | . . . Used . | . . . Hacking Detections . | . . . Full Trace Events . | . . . Feedback Events . | . . . Feedback Blocked . | . . . Robot Schematics Acquired . | . . . Robots Built . | . . . Authchips . | . . . Time . | . . . Total Robot Build Rating . | . . . Part Schematics Acquired . | . . . Parts Built . | . . . Authchips . | . . . Time . | . . . Total Part Build Rating . | . . . Parts Repaired . | . . . Time . | . . . Parts Recycled . | . . . Recycled Matter . | . . . Retrieved Matter . | . . . Retrieved Components . | . . . Parts Scanalyzed . | . . . Part Schematics Acquired . | . . . Parts Damaged . | . . . Bothacking | -11 -10 -10 ------------ Run | Scr Mat Min Used RIF Installer . | . . . Robots Hacked . | . . . Non-combat . | . . . Combat . | . . . Robot Hacks Applied . | . . . Relay Couplers Released . | . . . Fabnet Peak Effective % . | . . . Robots Rewired . | . . . Allies Hacked . | . . . Hacks Repelled . | . . . Allies | -11 -10 -10 -------- Run | Scr Mat Min Total Allies 1 | . . 1 Largest Group 1 | . . 1 Highest-Rated Group 31 | . . 31 Highest-Rated Ally 31 | . . 31 Total Orders . | . . . Ally Attacks 8 | . . 8 Total Damage 108 | . . 108 Kills 1 | . . 1 Allies Corrupted . | . . . Allies Melted . | . . . Intel | -11 -10 -10 ------- Run | Scr Mat Min Robot Analysis Total . | . . . Derelict Logs Recovered . | . . . Drone Launches . | . . . Drone Recoveries . | . . . Exploration | -11 -10 -10 ------------- Run | Scr Mat Min Turns Passed 368 | . 71 297 Spaces Moved 207 | 1 42 164 Core . | . . . Treads . | . . . Legs 207 | 1 42 164 Wheels . | . . . Hover . | . . . Flight . | . . . Fastest Speed 120 | 120 120 120 Average Speed 120 | 120 120 120 Slowest Speed 120 | 120 120 120 Overloaded Moves . | . . . Propulsion Burnouts . | . . . Robots Hopped . | . . . Cave-ins Triggered . | . . . Exploration Rate (%) 14 | 2 16 25 Regions Visited 2 Branch Regions 1 Pre-discovered Areas . | . . . Known Exits Taken . | . . . Unknown Exits Taken 2 | 1 1 . Scrap Searched . | . . . Spaces Dug . | . . . Terrain Destroyed 156 | . . 156 Melee . | . . . Projectile . | . . . AOE 156 | . . 156 Terrain Rammed . | . . . Walls Destroyed . | . . . Machines Disabled . | . . . Actions | -11 -10 -10 --------- Run | Scr Mat Min Total 282 | . 60 222 Wait 19 | . 15 4 Move 205 | . 41 164 Hop . | . . . Pick Up 3 | . 2 1 Fast Attach 1 | . 1 . Attach 8 | . . 8 Detach 7 | . . 7 Swap 1 | . . 1 Drop 4 | . . 4 Fire 33 | . 1 32 Melee . | . . . Ram . | . . . Kick 1 | . . 1 Crush . | . . . Escape Stasis . | . . . Rewire . | . . . Trap . | . . . Miscellaneous . | . . . Route ------- -11/Scrapyard -10/Materials -10/Mines History --------- Turn | Location | Event 1 | -11/Scrapyard | Discovered new exit (range 0) 1 | -11/Scrapyard | Entered Materials 64 | -10/Materials | Discovered new exit (range 7) 72 | -10/Materials | Entered Mines 73 | -10/Mines | Met a Derelict testing a Signal Generator 95 | -10/Mines | Received a Rocket Launcher from a helpful Derelict 212 | -10/Mines | Assembled infested the area 217 | -10/Mines | Assisted by a Guerilla fighting off Assembled 267 | -10/Mines | Destroyed 9 combat bots 332 | -10/Mines | Build established: Mutant 351 | -10/Mines | Core integrity fell below 50% 368 | -10/Mines | Core integrity fell below 20% 369 | -10/Mines | Destroyed by D-53 Grenadier with Mini Grenade Launcher Last Messages --------------- 00338_ U-05 Engineer builds a Wall. 00339_ The unstable cave ceiling collapses. 00339_ S-10 Pest destroyed. 00341_ Lgt. Armor Plating destroyed. 00341_ S-10 Pest destroyed. 00341_ Destroyed Flight Unit. 00341_ S-10 Pest destroyed. 00343_ U-05 Engineer lays Concrete. 00344_ U-05 Engineer builds a Wall. 00347_ The unstable cave ceiling collapses. 00348_ U-05 Engineer builds a Wall. 00353_ U-05 Engineer lays Concrete. 00356_ The unstable cave ceiling collapses. 00356_ U-05 Engineer lays Concrete. 00356_ R-06 Scavenger destroyed. 00357_ The unstable cave ceiling collapses. 00357_ U-05 Engineer builds a Wall. 00367_ EM Pulse Gun destroyed. 00368_ The unstable cave ceiling collapses. 00369_ Aluminum Leg destroyed. Map ----- +----------------------------------------------------+ | ????????????? ??????# #???####??? | | ?????????????# ?????# #??## ##?? | | ?????????????# ????? ##?# #?? | | ??????? #???# ###?# #?# #?? | | ????? ???# ""## ### #?? | | ?????# % ??# % ## #?? | | ????## %% ??? % ## #?? | | ???## #?## #?# ##? | | ???# ## = #??## #? | | ????# # * #???## #? | | ???## # =*! ##### #? | | ??## # =%= ### ##? | | ??# # % *[= ## #?? | | ??# = | #?# #?? | | ??## % ###?# ##?? | | ??# ###?## ##?? | | ??## # #?# # ## #?? | | #?## # #?? | | #?## # #?? | | # ### ## # ** #?# #?? | | ?????????# ! ##### #?? | | ?????????# =[= # # # ##?? | | ???????????# % # ##??? | | ???????????###[ d # #???? | | ?????????????#*## d ##??? | | ?????????????# ## @ ##?? | | ?????????????# ?## #?? | | ?????????????==??# # # ##? | | ?????????????##??##### #? | | ?????????????????????## ## # #? | | ??????????????????????### ##? | | ???????????????????????# #?? | | ???????????????????????# ##?? | | ???????????????????????## ####??? | | ????????????????????????## ###?????? | | ?????????????????????????#####???????? | | ?????????????????????????????????????? | | ?????????????????????????????????????? | | ?????????????????????????????????????? | | ?????????????????????????????????????? | | ?????????????????????????????????????? | | ?????????????????????????????????????? | | ?????????????????????????????????????? | | | | | | | | | | | | | | | +----------------------------------------------------+ Best States ------------- Heat Dissipation 25 Energy Generation 10 Energy Capacity 250 Matter Stores 300 Matter Capacity 400 Sight Range 16 Terrain Scan Density 10 Armor Coverage 150 Evasion (%) 55 Item Schematics ----------------- None Robot Schematics ------------------ None Fabricated ------------ Nothing Alien Tech Used ----------------- None Achievements -------------- None Challenges ------------ None Game ------ Seed WeightMachineCalibrator Manual? 0 Play Time 00:11:16 Cumulative 14.2 hours Start 2022.03.26 @ 07:31:51 End 2022.03.26 @ 07:40:52 Sessions 1 Manual Loads 0 Difficulty Rogue Special Mode None Game No. 23 Rogue 23 Adventurer 0 Explorer 0 Win Type - Total 0 Types 0/0/0/0/0/0/0/0/0 Lore% 13 Gallery% 18 Achievement% 14 Wizard Run 0 Options --------- ASCII 0 Keyboard 1 Movement Numpad Keybinds 0 Fullscreen 2 Font 18/TerminusBold Map View 76x50 Tactical HUD 1 Map Filters NONE Filters NONE Steam 1 RUN: 6da0f733-5347-410b-a750-394bcf3d5bb3